Workbook

Sheet センター基礎情報
A1: センター基礎情報
A2: 作成年度
A3: 令和8年度
A5: センター名称
A8: 担当地区名（※市パンフレットの担当地区名を入力）
A22: 担当地区外
A23: 不明

Sheet 個別ケース相談対応（日報入力用）
A1: =センター基礎情報!A3 -> 令和8年度 | D1: 個別ケース相談対応実績（日報）
F2: =センター基礎情報!A6 -> 0 | L2: 地域包括支援センター
A3: 受付日 | F3: 分類 | I3: 相談方法 | N3: 相談経路（複数選択可） | Z3: 相談者（複数選択可） | AR3: 本人の年齢 | AW3: 本人の性別 | BA3: 住所 | BB3: 世帯構成 | BG3: 認定申請状況 | BR3: 相談内容（主訴） 複数選択可 | CN3: 緊急レベル | CR3: 対応方針（月締め時点） 複数選択可 | DE3: 調整先（月締め時点） 複数選択可
A4: 月 | B4: 日 | C4: NO | D4: センター名 | E4: 支援対象者 | F4: 新規 | G4: 再相談 | H4: その他 | I4: 来所 | J4: ＴＥＬ | K4: 訪問 | L4: メール | M4: その他 | N4: 家族 | O4: 知人・友人 | P4: 地域住民 | Q4: ケアマネジャー | R4: 事業所 | S4: 民生委員 | T4: リーフレット | U4: インターネット | V4: 行政機関 | W4: 医療機関 | X4: 不明 | Y4: その他 | Z4: 本人 | AA4: 家族・親族 | AB4: 友人 | AC4: 民生委員 | AD4: 町内会・自治会・地域住民など | AE4: ケアマネジャー | AF4: サービス事業所 | AG4: 障害関係事業所 | AH4: 医療機関 | AI4: 弁護士・司法書士など（権利擁護） | AJ4: 区役所（高齢） | AK4: 区役所（認定給付） | AL4: 区役所（保護） | AM4: 区役所（障害・精神） | AN4: 区役所（地域支援） | AO4: その他行政 | AP4: その他 | AQ4: 不明 | AR4: 65歳未満 | AS4: 65～74歳 | AT4: 75～85歳 | AU4: 85歳歳以上 | AV4: 不明 | AW4: 男性 | AX4: 女性 | AY4: その他 | AZ4: 不明 | BA4: 地区名 | BB4: 独居 | BC4: 夫婦のみ | BD4: 家族と同居 | BE4: その他 | BF4: 不明 | BG4: 未申請 | BH4: 申請中 | BI4: 事業対象者 | BJ4: 要支援１ | BK4: 要支援２ | BL4: 要介護１ | BM4: 要介護２ | BN4: 要介護３ | BO4: 要介護４ | BP4: 要介護５ | BQ4: 不明 | BR4: 介護給付 | BS4: 予防給付・総合事業 | BT4: 介護保険関連（申請） | BU4: 本人の介護に関する相談 | BV4: 介護者の負担 | BW4: 介護離職 | BX4: 障害等他分野の相談 | BY4: 複合的な課題 | BZ4: 市単サービス | CA4: インフォーマルサポート | CB4: 施設入所 | CC4: 介護方法等 | CD4: 医療・健康管理全般 | CE4: 安否確認 | CF4: 判断能力を欠く常況（成年後見含む） | CG4: 認知症（判断能力低下など疑い含む） | CH4: 支援拒否・援助希求無 | CI4: 虐待 | CJ4: 生活保護・困窮・経済的な相談 | CK4: その他生活上の課題（生活支援） | CL4: 苦情・トラブル | CM4: その他 | CN4: レベル１（一般的な問い合わせ） | CO4: レベル２（相談者自身で対応が可能） | CP4: レベル３（専門的・継続的な支援が必要） | CQ4: レベル４（緊急対応が必要） | CR4: 予防プラン作成等 | CS4: 状態改善のための集中支援 | CT4: 居宅サービス利用 | CU4: 施設入所 | CV4: 医療へのつなぎ | CW4: その他福祉サービス・相談機関の紹介 | CX4: インフォーマルサポート・サービス | CY4: 高齢者虐待 | CZ4: その他権利擁護 | DA4: 支援困難事例等として介入（虐待以外） | DB4: その他継続対応（見守り等） | DC4: 対応保留・連絡待ち等 | DD4: その他 | DE4: 本人 | DF4: 家族・親族 | DG4: 民生委員 | DH4: 町内会・自治会・地域住民など | DI4: ケアマネジャー | DJ4: 介護サービス事業所 | DK4: 介護予防事業 | DL4: 地域活動 | DM4: その他インフォーマルサポート・サービス | DN4: 地域リハビリテーション支援拠点 | DO4: 障害関係事業所 | DP4: 医療機関 | DQ4: 区役所（高齢） | DR4: 区役所（認定給付） | DS4: 区役所（保護） | DT4: 区役所（障害・精神） | DU4: 区役所（地域支援） | DV4: その他行政 | DW4: 生活支援コーディネーター | DX4: 権利擁護機関 | DY4: 住宅関係の機関・団体・事業者 | DZ4: その他 | EA4: 備考
C5: 年計 | F5: =F1132 -> 0 | G5: 0 | H5: 0 | I5: 0 | J5: 0 | K5: 0 | L5: 0 | M5: 0 | N5: =N1132 -> 0 | O5: =O1132 -> 0 | P5: =P1132 -> 0 | Q5: 0 | R5: 0 | S5: 0 | T5: 0 | U5: 0 | V5: 0 | W5: 0 | X5: 0 | Y5: 0 | Z5: =Z1132 -> 0 | AA5: 0 | AB5: 0 | AC5: 0 | AD5: 0 | AE5: 0 | AF5: 0 | AG5: 0 | AH5: 0 | AI5: 0 | AJ5: 0 | AK5: 0 | AL5: 0 | AM5: 0 | AN5: 0 | AO5: 0 | AP5: 0 | AQ5: 0 | AR5: =AR1132 -> 0 | AS5: 0 | AT5: 0 | AU5: 0 | AV5: 0 | AW5: 0 | AX5: 0 | AY5: 0 | AZ5: 0 | BB5: =BB1132 -> 0 | BC5: 0 | BD5: 0 | BE5: 0 | BF5: 0 | BG5: 0 | BH5: 0 | BI5: 0 | BJ5: 0 | BK5: 0 | BL5: 0 | BM5: 0 | BN5: 0 | BO5: 0 | BP5: 0 | BQ5: 0 | BR5: 0 | BS5: 0 | BT5: 0 | BU5: 0 | BV5: 0 | BW5: 0 | BX5: 0 | BY5: 0 | BZ5: 0 | CA5: 0 | CB5: 0 | CC5: 0 | CD5: 0 | CE5: 0 | CF5: 0 | CG5: 0 | CH5: =CH1132 -> 0 | CI5: 0 | CJ5: 0 | CK5: 0 | CL5: 0 | CM5: 0 | CN5: 0 | CO5: 0 | CP5: 0 | CQ5: 0 | CR5: 0 | CS5: =CS1132 -> 0 | CT5: 0 | CU5: 0 | CV5: 0 | CW5: =CW1132 -> 0 | CX5: 0 | CY5: =CY1132 -> 0 | CZ5: 0 | DA5: 0 | DB5: 0 | DC5: 0 | DD5: =DD1132 -> 0 | DE5: =DE1132 -> 0 | DF5: 0 | DG5: 0 | DH5: 0 | DI5: 0 | DJ5: 0 | DK5: 0 | DL5: =DL1132 -> 0 | DM5: 0 | DN5: 0 | DO5: 0 | DP5: 0 | DQ5: 0 | DR5: 0 | DS5: 0 | DT5: 0 | DU5: 0 | DV5: 0 | DW5: 0 | DX5: 0 | DY5: =DY1132 -> 0 | DZ5: 0 | EB5: =EB1132 -> 0 | EC5: 0 | ED5: 0 | EE5: 0 | EF5: 0 | EG5: 0 | EH5: 0 | EI5: 0 | EJ5: 0 | EK5: 0
A6: 7行目から入力してください
C7: 1 | D7: =F$2 -> 0
C8: =C7+1 -> 2 | D8: =F$2 -> 0
C9: =C8+1 -> 3 | D9: 0
C10: 4 | D10: 0
C11: 5 | D11: 0
C12: 6 | D12: 0
C13: 7 | D13: 0
C14: 8 | D14: 0
C15: 9 | D15: 0
C16: 10 | D16: 0
C17: 11 | D17: 0
C18: 12 | D18: 0
C19: 13 | D19: 0
C20: 14 | D20: 0
C21: 15 | D21: 0
C22: 16 | D22: 0
C23: 17 | D23: 0
C24: 18 | D24: 0
C25: 19 | D25: 0
C26: 20 | D26: 0
C27: 21 | D27: 0
C28: 22 | D28: 0
C29: 23 | D29: 0
C30: 24 | D30: 0
C31: 25 | D31: 0
C32: 26 | D32: 0
C33: 27 | D33: 0
C34: 28 | D34: 0
C35: 29 | D35: 0
C36: 30 | D36: 0
C37: 31 | D37: 0
C38: 32 | D38: 0
C39: 33 | D39: 0
C40: 34 | D40: 0
C41: 35 | D41: 0
C42: 36 | D42: 0
C43: 37 | D43: 0
C44: 38 | D44: 0
C45: 39 | D45: 0
C46: 40 | D46: 0
C47: 41 | D47: 0
C48: 42 | D48: 0
C49: 43 | D49: 0
C50: 44 | D50: 0
C51: 45 | D51: 0
C52: 46 | D52: 0
C53: 47 | D53: 0
C54: 48 | D54: 0
C55: 49 | D55: 0
C56: 50 | D56: 0
C57: 51 | D57: 0
C58: 52 | D58: 0
C59: 53 | D59: 0
C60: 54 | D60: 0
C61: 55 | D61: 0
C62: 56 | D62: 0
C63: 57 | D63: 0
C64: 58 | D64: 0
C65: 59 | D65: 0
C66: 60 | D66: 0
C67: 61 | D67: 0
C68: 62 | D68: 0
C69: 63 | D69: 0
C70: 64 | D70: 0
C71: 65 | D71: 0
C72: 66 | D72: =F$2 -> 0
C73: =C72+1 -> 67 | D73: 0
C74: 68 | D74: 0
C75: 69 | D75: 0
C76: 70 | D76: 0
C77: 71 | D77: 0
C78: 72 | D78: 0
C79: 73 | D79: 0
C80: 74 | D80: 0
C81: 75 | D81: 0
C82: 76 | D82: 0
C83: 77 | D83: 0
C84: 78 | D84: 0
C85: 79 | D85: 0
C86: 80 | D86: 0
C87: 81 | D87: 0
C88: 82 | D88: 0
C89: 83 | D89: 0
C90: 84 | D90: 0
C91: 85 | D91: 0
C92: 86 | D92: 0
C93: 87 | D93: 0
C94: 88 | D94: 0
C95: 89 | D95: 0
C96: 90 | D96: 0
C97: 91 | D97: 0
C98: 92 | D98: 0
C99: 93 | D99: 0
C100: 94 | D100: 0
C101: 95 | D101: 0
C102: 96 | D102: 0
C103: 97 | D103: 0
C104: 98 | D104: 0
C105: 99 | D105: 0
C106: 100 | D106: 0
C107: 101 | D107: 0
C108: 102 | D108: 0
C109: 103 | D109: 0
C110: 104 | D110: 0
C111: 105 | D111: 0
C112: 106 | D112: 0
C113: 107 | D113: 0
C114: 108 | D114: 0
C115: 109 | D115: 0
C116: 110 | D116: 0
C117: 111 | D117: 0
C118: 112 | D118: 0
C119: 113 | D119: 0
C120: 114 | D120: 0
C121: 115 | D121: 0
C122: 116 | D122: 0
C123: 117 | D123: 0
C124: 118 | D124: 0
C125: 119 | D125: 0
C126: 120 | D126: 0
C127: 121 | D127: 0
C128: 122 | D128: 0
C129: 123 | D129: 0
C130: 124 | D130: 0
C131: 125 | D131: 0
C132: 126 | D132: 0
C133: 127 | D133: 0
C134: 128 | D134: 0
C135: 129 | D135: 0
C136: 130 | D136: =F$2 -> 0
C137: =C136+1 -> 131 | D137: 0
C138: 132 | D138: 0
C139: 133 | D139: 0
C140: 134 | D140: 0
C141: 135 | D141: 0
C142: 136 | D142: 0
C143: 137 | D143: 0
C144: 138 | D144: 0
C145: 139 | D145: 0
C146: 140 | D146: 0
C147: 141 | D147: 0
C148: 142 | D148: 0
C149: 143 | D149: 0
C150: 144 | D150: 0
C151: 145 | D151: 0
C152: 146 | D152: 0
C153: 147 | D153: 0
C154: 148 | D154: 0
C155: 149 | D155: 0
C156: 150 | D156: 0
C157: 151 | D157: 0
C158: 152 | D158: 0
C159: 153 | D159: 0
C160: 154 | D160: 0
C161: 155 | D161: 0
C162: 156 | D162: 0
C163: 157 | D163: 0
C164: 158 | D164: 0
C165: 159 | D165: 0
C166: 160 | D166: 0
C167: 161 | D167: 0
C168: 162 | D168: 0
C169: 163 | D169: 0
C170: 164 | D170: 0
C171: 165 | D171: 0
C172: 166 | D172: 0
C173: 167 | D173: 0
C174: 168 | D174: 0
C175: 169 | D175: 0
C176: 170 | D176: 0
C177: 171 | D177: 0
C178: 172 | D178: 0
C179: 173 | D179: 0
C180: 174 | D180: 0
C181: 175 | D181: 0
C182: 176 | D182: 0
C183: 177 | D183: 0
C184: 178 | D184: 0
C185: 179 | D185: 0
C186: 180 | D186: 0
C187: 181 | D187: 0
C188: 182 | D188: 0
C189: 183 | D189: 0
C190: 184 | D190: 0
C191: 185 | D191: 0
C192: 186 | D192: 0
C193: 187 | D193: 0
C194: 188 | D194: 0
C195: 189 | D195: 0
C196: 190 | D196: 0
C197: 191 | D197: 0
C198: 192 | D198: 0
C199: 193 | D199: 0
C200: 194 | D200: =F$2 -> 0
... 932 more rows

Sheet 個別ケア会議（随時入力用）
A1: （様式１）
A2: =センター基礎情報!A3 -> 令和8年度 | D2: 個別ケア会議報告書
E3: =センター基礎情報!A6 -> 0 | K3: 地域包括支援センター
A4: 月 | B4: 日 | C4: NO | D4: センター名 | E4: 回数 | G4: 個人情報 | H4: 世帯構成 | L4: 属性 | N4: 開催目的（主なもの全て） | V4: 参加者（該当する者全て） | AS4: 主な論点（該当するもの全て） | BN4: 検討概要の特記事項・備考欄（必要に応じて記載）
E5: 初回 | F5: ２回目以降 | G5: 本人同意 | H5: 独居 | I5: 夫婦のみ | J5: 家族と同居 | K5: その他 | L5: 複合的な課題がある世帯 | M5: 家族介護者の介護負担 | N5: 支援方針検討 | O5: 専門機関連携 | P5: 行政部署との連携 | Q5: 支援者支援 | R5: 地域連携 | S5: 苦情・トラブル | T5: その他 | U5: その他の内容 | V5: 本人 | W5: 家族 | X5: 知人 | Y5: 民生委員 | Z5: 地域住民(地縁組織含む) | AA5: ケアマネジャー | AB5: 介護サービス事業所 | AC5: 権利擁護専門職 | AD5: 医療機関・薬局 | AE5: 地域リハ拠点 | AF5: 生活支援コーディネーター | AG5: 地域ケアコーディネーター | AH5: 障害者相談支援センター | AI5: 障害サービス事業所 | AJ5: 地域支援室 | AK5: 高齢者支援係 | AL5: 障害者支援係 | AM5: 精神保健係 | AN5: 保護課 | AO5: 地域支援課 | AP5: その他行政 | AQ5: 他地域包括支援センター | AR5: その他 | AS5: 認知症 | AT5: 障害 | AU5: 精神疾患 | AV5: 身寄り無・KP不在等 | AW5: 支援拒否・援助希求無 | AX5: 金銭管理 | AY5: 成年後見制度関係 | AZ5: 経済問題 | BA5: ごみ問題 | BB5: 医療との連携 | BC5: 他分野の支援者との連携 | BD5: 支援者の役割分担 | BE5: 支援者の経験・スキル | BF5: 家族関係・トラブル | BG5: ご近所トラブル | BH5: 他苦情・トラブル | BI5: 自立支援・介護予防 | BJ5: 入退院時支援 | BK5: 健康管理 | BL5: その他 | BM5: その他の内容
C6: 年計 | E6: =COUNTA(E7:E206) -> 0 | F6: =COUNTA(F7:F206) -> 0 | H6: =COUNTA(H7:H206) -> 0 | I6: 0 | J6: 0 | K6: 0 | L6: 0 | M6: 0 | N6: 0 | O6: 0 | P6: 0 | Q6: 0 | R6: 0 | S6: 0 | T6: 0 | V6: =COUNTA(V7:V206) -> 0 | W6: 0 | X6: 0 | Y6: 0 | Z6: 0 | AA6: 0 | AB6: 0 | AC6: 0 | AD6: 0 | AE6: 0 | AF6: 0 | AG6: 0 | AH6: 0 | AI6: 0 | AJ6: 0 | AK6: 0 | AL6: 0 | AM6: 0 | AN6: 0 | AO6: 0 | AP6: 0 | AQ6: 0 | AR6: 0 | AS6: 0 | AT6: 0 | AU6: 0 | AV6: 0 | AW6: 0 | AX6: 0 | AY6: 0 | AZ6: 0 | BA6: 0 | BB6: 0 | BC6: 0 | BD6: 0 | BE6: 0 | BF6: 0 | BG6: 0 | BH6: 0 | BI6: 0 | BJ6: 0 | BK6: 0 | BL6: 0
C7: 1 | D7: =$E$3 -> 0
C8: =C7+1 -> 2 | D8: =$E$3 -> 0
C9: =C8+1 -> 3 | D9: 0
C10: 4 | D10: 0
C11: 5 | D11: 0
C12: 6 | D12: 0
C13: 7 | D13: 0
C14: 8 | D14: 0
C15: 9 | D15: 0
C16: 10 | D16: 0
C17: 11 | D17: 0
C18: 12 | D18: 0
C19: 13 | D19: 0
C20: 14 | D20: 0
C21: 15 | D21: 0
C22: 16 | D22: 0
C23: 17 | D23: 0
C24: 18 | D24: 0
C25: 19 | D25: 0
C26: 20 | D26: 0
C27: 21 | D27: 0
C28: 22 | D28: 0
C29: 23 | D29: 0
C30: 24 | D30: 0
C31: 25 | D31: 0
C32: 26 | D32: 0
C33: 27 | D33: 0
C34: 28 | D34: 0
C35: 29 | D35: 0
C36: 30 | D36: 0
C37: 31 | D37: 0
C38: 32 | D38: 0
C39: 33 | D39: 0
C40: 34 | D40: 0
C41: 35 | D41: 0
C42: 36 | D42: 0
C43: 37 | D43: 0
C44: 38 | D44: 0
C45: 39 | D45: 0
C46: 40 | D46: 0
C47: 41 | D47: 0
C48: 42 | D48: 0
C49: 43 | D49: 0
C50: 44 | D50: 0
C51: 45 | D51: 0
C52: 46 | D52: 0
C53: 47 | D53: 0
C54: 48 | D54: 0
C55: 49 | D55: 0
C56: 50 | D56: 0
C57: 51 | D57: 0
C58: 52 | D58: 0
C59: 53 | D59: 0
C60: 54 | D60: 0
C61: 55 | D61: 0
C62: 56 | D62: 0
C63: 57 | D63: 0
C64: 58 | D64: 0
C65: 59 | D65: 0
C66: 60 | D66: 0
C67: 61 | D67: 0
C68: 62 | D68: 0
C69: 63 | D69: 0
C70: 64 | D70: 0
C71: 65 | D71: 0
C72: 66 | D72: 0
C73: =C72+1 -> 67 | D73: 0
C74: 68 | D74: 0
C75: 69 | D75: 0
C76: 70 | D76: 0
C77: 71 | D77: 0
C78: 72 | D78: 0
C79: 73 | D79: 0
C80: 74 | D80: 0
C81: 75 | D81: 0
C82: 76 | D82: 0
C83: 77 | D83: 0
C84: 78 | D84: 0
C85: 79 | D85: 0
C86: 80 | D86: 0
C87: 81 | D87: 0
C88: 82 | D88: 0
C89: 83 | D89: 0
C90: 84 | D90: 0
C91: 85 | D91: 0
C92: 86 | D92: 0
C93: 87 | D93: 0
C94: 88 | D94: 0
C95: 89 | D95: 0
C96: 90 | D96: 0
C97: 91 | D97: 0
C98: 92 | D98: 0
C99: 93 | D99: 0
C100: 94 | D100: 0
C101: 95 | D101: 0
C102: 96 | D102: 0
C103: 97 | D103: 0
C104: 98 | D104: 0
C105: 99 | D105: 0
C106: 100 | D106: 0
C107: 101 | D107: 0
C108: 102 | D108: 0
C109: 103 | D109: 0
C110: 104 | D110: 0
C111: 105 | D111: 0
C112: 106 | D112: 0
C113: 107 | D113: 0
C114: 108 | D114: 0
C115: 109 | D115: 0
C116: 110 | D116: 0
C117: 111 | D117: 0
C118: 112 | D118: 0
C119: 113 | D119: 0
C120: 114 | D120: 0
C121: 115 | D121: =$E$3 -> 0
C122: 116 | D122: 0
C123: 117 | D123: 0
C124: 118 | D124: 0
C125: 119 | D125: 0
C126: 120 | D126: 0
C127: 121 | D127: 0
C128: 122 | D128: 0
C129: 123 | D129: 0
C130: 124 | D130: 0
C131: 125 | D131: 0
C132: 126 | D132: 0
C133: 127 | D133: 0
C134: 128 | D134: 0
C135: 129 | D135: 0
C136: 130 | D136: 0
C137: =C136+1 -> 131 | D137: 0
C138: 132 | D138: 0
C139: 133 | D139: 0
C140: 134 | D140: 0
C141: 135 | D141: 0
C142: 136 | D142: 0
C143: 137 | D143: 0
C144: 138 | D144: 0
C145: 139 | D145: 0
C146: 140 | D146: 0
C147: 141 | D147: 0
C148: 142 | D148: 0
C149: 143 | D149: 0
C150: 144 | D150: 0
C151: 145 | D151: 0
C152: 146 | D152: 0
C153: 147 | D153: 0
C154: 148 | D154: 0
C155: 149 | D155: 0
C156: 150 | D156: 0
C157: 151 | D157: 0
C158: 152 | D158: 0
C159: 153 | D159: 0
C160: 154 | D160: 0
C161: 155 | D161: 0
C162: 156 | D162: 0
C163: 157 | D163: 0
C164: 158 | D164: 0
C165: 159 | D165: 0
C166: 160 | D166: 0
C167: 161 | D167: 0
C168: 162 | D168: 0
C169: 163 | D169: 0
C170: 164 | D170: 0
C171: 165 | D171: 0
C172: 166 | D172: 0
C173: 167 | D173: 0
C174: 168 | D174: 0
C175: 169 | D175: 0
C176: 170 | D176: 0
C177: 171 | D177: 0
C178: 172 | D178: 0
C179: 173 | D179: 0
C180: 174 | D180: 0
C181: 175 | D181: 0
C182: 176 | D182: 0
C183: 177 | D183: 0
C184: 178 | D184: 0
C185: 179 | D185: =$E$3 -> 0
C186: 180 | D186: 0
C187: 181 | D187: 0
C188: 182 | D188: 0
C189: 183 | D189: 0
C190: 184 | D190: 0
C191: 185 | D191: 0
C192: 186 | D192: 0
C193: 187 | D193: 0
C194: 188 | D194: 0
C195: 189 | D195: 0
C196: 190 | D196: 0
C197: 191 | D197: 0
C198: 192 | D198: 0
C199: 193 | D199: 0
C200: 194 | D200: 0
... 6 more rows

Sheet 地域活動支援・機関ネットワーク（随時入力用）
A1: =センター基礎情報!A3 -> 令和8年度 | D1: 地域活動支援・機関ネットワーク関係実績報告書
E2: =センター基礎情報!A6 -> 0 | K2: 地域包括支援センター
BG3: ※包括で必要だと思う項目を追記してください
A4: 月 | B4: 日 | C4: NO | D4: 対象機関名・ イベント名等 | E4: 対象機関(主催団体・機関）属性 | AC4: 地域包括支援センターが行った活動・支援 | BD4: 備考
E5: 地域 | Q5: 施設等 | V5: 専門機関 | AC5: 活動・支援を行った対象機関の活動の場の内訳 | AO5: 活動・支援内容内訳
E6: 民児協 | F6: 町会・自治会 | G6: 老人会・老人クラブ | H6: 地区社協 | J6: その他ボランティア団体 | K6: 家族会・当事者グループ | L6: 自主活動団体 | M6: 団地・マンション管理組合等 | N6: 商店会等商業関係 | O6: ＪＡ・郵便局等金融関係 | P6: その他 | Q6: いこいの家 | R6: 老人福祉センター | S6: 小規模多機能型施設・ グループホーム | T6: 学校等教育関係 | U6: その他 | V6: 居宅介護支援事業所・ 介護支援専門員連絡会等 | W6: 介護サービス事業所・ 介護サービス連絡会等 | X6: 区地域支援担当 | Y6: 警察・消防 | Z6: 医療機関 | AA6: その他 | AC6: 会食会 | AD6: ミニデイ | AE6: 公園体操 | AF6: その他体操関連 | AG6: サロン | AH6: 趣味の会 | AI6: お祭り等地域のイベント | AJ6: 健康教室 | AK6: いこい元気広場 | AM6: 定例会・会議・研修会等 | AN6: その他 | AO6: 参加・見学(顔合わせ） | AP6: 包括についての周知・広報 | AQ6: 介護保険制度についての説明等 | AR6: 権利擁護関連について周知・広報 | AS6: 認知症について普及啓発 | AT6: 介護予防等のミニ講話・説明等 | AU6: 相談・意見交換会 | AV6: 事例検討会への協力・支援 | AW6: 研修会等への協力・支援 | AX6: 委員・メンバーとして協力・支援 | AY6: その他情報提供 | AZ6: 場所の提供 | BA6: その他 | BB6: 新規ネットワーク構築に向けてのアプローチ
C7: 年計 | E7: =E220 -> 0 | F7: =F220 -> 0 | G7: 0 | H7: 0 | I7: 0 | J7: 0 | K7: 0 | L7: 0 | M7: 0 | N7: 0 | O7: 0 | P7: 0 | Q7: 0 | R7: 0 | S7: 0 | T7: 0 | U7: 0 | V7: 0 | W7: 0 | X7: 0 | Y7: 0 | Z7: 0 | AA7: 0 | AC7: =AC220 -> 0 | AD7: =AD220 -> 0 | AE7: 0 | AF7: 0 | AG7: 0 | AH7: 0 | AI7: 0 | AJ7: 0 | AK7: 0 | AL7: 0 | AM7: 0 | AN7: 0 | AO7: 0 | AP7: 0 | AQ7: 0 | AR7: 0 | AS7: 0 | AT7: 0 | AU7: 0 | AV7: 0 | AW7: 0 | AX7: 0 | AY7: 0 | AZ7: 0 | BA7: 0 | BB7: 0 | BE7: =BE220 -> 0 | BF7: 0 | BG7: 0 | BH7: 0 | BI7: 0 | BJ7: 0 | BK7: 0 | BL7: 0 | BM7: 0 | BN7: 0 | BO7: 0 | BP7: 0 | BQ7: 0 | BR7: 0 | BS7: 0 | BT7: 0
D8: 9行目から入力してください
C9: 1
C10: =C9+1 -> 2
C11: =C10+1 -> 3
C12: 4
C13: 5
C14: 6
C15: 7
C16: 8
C17: 9
C18: 10
C19: 11
C20: 12
C21: 13
C22: 14
C23: 15
C24: 16
C25: 17
C26: 18
C27: 19
C28: 20
C29: 21
C30: 22
C31: 23
C32: 24
C33: 25
C34: 26
C35: 27
C36: 28
C37: 29
C38: 30
C39: 31
C40: 32
C41: 33
C42: 34
C43: 35
C44: 36
C45: 37
C46: 38
C47: 39
C48: 40
C49: 41
C50: 42
C51: 43
C52: 44
C53: 45
C54: 46
C55: 47
C56: 48
C57: 49
C58: 50
C59: 51
C60: 52
C61: 53
C62: 54
C63: 55
C64: 56
C65: 57
C66: 58
C67: 59
C68: 60
C69: 61
C70: 62
C71: 63
C72: 64
C73: 65
C74: 66
C75: =C74+1 -> 67
C76: 68
C77: 69
C78: 70
C79: 71
C80: 72
C81: 73
C82: 74
C83: 75
C84: 76
C85: 77
C86: 78
C87: 79
C88: 80
C89: 81
C90: 82
C91: 83
C92: 84
C93: 85
C94: 86
C95: 87
C96: 88
C97: 89
C98: 90
C99: 91
C100: 92
C101: 93
C102: 94
C103: 95
C104: 96
C105: 97
C106: 98
C107: 99
C108: 100
C109: 101
C110: 102
C111: 103
C112: 104
C113: 105
C114: 106
C115: 107
C116: 108
C117: 109
C118: 110
C119: 111
C120: 112
C121: 113
C122: 114
C123: 115
C124: 116
C125: 117
C126: 118
C127: 119
C128: 120
C129: 121
C130: 122
C131: 123
C132: 124
C133: 125
C134: 126
C135: 127
C136: 128
C137: 129
C138: 130
C139: =C138+1 -> 131
C140: 132
C141: 133
C142: 134
C143: 135
C144: 136
C145: 137
C146: 138
C147: 139
C148: 140
C149: 141
C150: 142
C151: 143
C152: 144
C153: 145
C154: 146
C155: 147
C156: 148
C157: 149
C158: 150
C159: 151
C160: 152
C161: 153
C162: 154
C163: 155
C164: 156
C165: 157
C166: 158
C167: 159
C168: 160
C169: 161
C170: 162
C171: 163
C172: 164
C173: 165
C174: 166
C175: 167
C176: 168
C177: 169
C178: 170
C179: 171
C180: 172
C181: 173
C182: 174
C183: 175
C184: 176
C185: 177
C186: 178
C187: 179
C188: 180
C189: 181
C190: 182
C191: 183
C192: 184
C193: 185
C194: 186
C195: 187
C196: 188
C197: 189
C198: 190
C199: 191
C200: 192
... 20 more rows

Sheet 継続対応ケース（月締入力用）
A1: =センター基礎情報!A3 -> 令和8年度 | B1: 高齢者実態把握事業報告書
C2: =センター基礎情報!A6 -> 0 | F2: 地域包括支援センター
A3: １ 継続対応中の対象者（各月の月締め時点）
C4: ４月 | D4: ５月 | E4: ６月 | F4: ７月 | G4: ８月 | H4: ９月 | I4: １０月 | J4: １１月 | K4: １２月 | L4: １月 | M4: ２月 | N4: ３月 | O4: 最新
A5: 権利擁護・虐待 | O5: =INDEX(C5:N5,MATCH(MAX(C5:N5)+1,C5:N5,1)) -> 
A6: 他機関と連携して介入
A7: 包括以外に関わり無等
A8: その他
A9: 継続対応者計 | C9: =SUM(C5:C8) -> 0 | D9: =SUM(D5:D8) -> 0 | E9: 0 | F9: 0 | G9: 0 | H9: 0 | I9: 0 | J9: 0 | K9: 0 | L9: 0 | M9: 0 | N9: 0 | O9: 0
A10: 継続対応者のうち、支援拒否
A12: ２ その他の実態把握対象者
C13: ４月 | D13: ５月 | E13: ６月 | F13: ７月 | G13: ８月 | H13: ９月 | I13: １０月 | J13: １１月 | K13: １２月 | L13: １月 | M13: ２月 | N13: ３月 | O13: 最新
A14: 実態把握対象者 | O14: =INDEX(C14:N14,MATCH(MAX(C14:N14)+1,C14:N14,1)) -> 
A15: 継続的にかかわっていない実態把握対象者のモニタリング件数 | O15: =INDEX(C15:N15,MATCH(MAX(C15:N15)+1,C15:N15,1)) -> 

Sheet 介護予防ケアマネジメント（月締入力用）
A1: =センター基礎情報!A3 -> 令和8年度 | B1: 介護予防ケアマネジメント事業実績報告書
C2: =センター基礎情報!A6 -> 0 | F2: 地域包括支援センター
A3: 各月の国保連請求件数を記載 | BG3: ※包括で必要だと思う項目を追記してください
C4: ４月 （５月請求） | D4: ５月 （６月請求） | E4: ６月 （７月請求） | F4: ７月 （８月請求） | G4: ８月 （９月請求） | H4: ９月 （１０月請求） | I4: １０月 （１１月請求） | J4: １１月 （１２月請求） | K4: １２月 （１月請求） | L4: １月 （２月請求） | M4: ２月 （３月請求） | N4: ３月 （４月請求） | O4: 年間計
A5: 介護予防支援 | B5: 直営 | O5: =SUM(C5:N5) -> 0
B6: 委託 | O6: 0
B7: 小計 | C7: =SUM(C5:C6) -> 0 | D7: =SUM(D5:D6) -> 0 | E7: 0 | F7: 0 | G7: 0 | H7: 0 | I7: 0 | J7: 0 | K7: 0 | L7: 0 | M7: 0 | N7: 0 | O7: 0
A8: ケアマネジメントA | B8: 直営 | O8: 0
B9: 委託 | O9: 0
B10: 小計 | C10: =SUM(C8:C9) -> 0 | D10: =SUM(D8:D9) -> 0 | E10: 0 | F10: 0 | G10: 0 | H10: 0 | I10: 0 | J10: 0 | K10: 0 | L10: 0 | M10: 0 | N10: 0 | O10: 0
A11: ケアマネジメントC | B11: 直営 | O11: 0
B12: 委託
B13: 小計 | C13: =SUM(C11:C12) -> 0 | D13: 0 | E13: 0 | F13: 0 | G13: 0 | H13: 0 | I13: 0 | J13: 0 | K13: 0 | L13: 0 | M13: 0 | N13: 0 | O13: =SUM(C13:N13) -> 0
A14: 総計 | B14: 直営 | C14: =SUM(C5,C8,C11) -> 0 | D14: =SUM(D5,D8,D11) -> 0 | E14: 0 | F14: 0 | G14: 0 | H14: 0 | I14: 0 | J14: 0 | K14: 0 | L14: 0 | M14: 0 | N14: 0 | O14: =SUM(C14:N14) -> 0
B15: 委託 | C15: =SUM(C6,C9,C12) -> 0 | D15: =SUM(D6,D9,D12) -> 0 | E15: 0 | F15: 0 | G15: 0 | H15: 0 | I15: 0 | J15: 0 | K15: 0 | L15: 0 | M15: 0 | N15: 0 | O15: =SUM(C15:N15) -> 0
B16: 小計 | C16: =SUM(C14:C15) -> 0 | D16: =SUM(D14:D15) -> 0 | E16: 0 | F16: 0 | G16: 0 | H16: 0 | I16: 0 | J16: 0 | K16: 0 | L16: 0 | M16: 0 | N16: 0 | O16: =SUM(C16:N16) -> 0

Sheet 集計シート
A1: 地域包括支援センター業務実績報告書
A3: １．個別ケース相談受付実績 | C3: =センター基礎情報!A6 -> 0
A4: ●【1】相談受付分類
A5: 地域包括支援センターが新規・再相談を受けた件数 | C5: =SUM(C6:C8) -> 0
A6: （内訳） | B6: 新規ケース | C6: ='個別ケース相談対応（日報入力用）'!F$5 -> 0
B7: 再相談ケース | C7: ='個別ケース相談対応（日報入力用）'!G$5 -> 0
B8: 不明 | C8: ='個別ケース相談対応（日報入力用）'!H$5 -> 0
A10: ●【２】相談受付方法 ※複数回答有
A11: 来所（包括支援Ｃ内） | C11: ='個別ケース相談対応（日報入力用）'!I$5 -> 0
A12: ＴＥＬ | C12: ='個別ケース相談対応（日報入力用）'!J$5 -> 0
A13: 訪問 | C13: ='個別ケース相談対応（日報入力用）'!K$5 -> 0
A14: メール | C14: ='個別ケース相談対応（日報入力用）'!L$5 -> 0
A15: その他 | C15: ='個別ケース相談対応（日報入力用）'!M$5 -> 0
A17: ●【３】相談経路 ※複数回答有
A18: 家族 | C18: ='個別ケース相談対応（日報入力用）'!N$5 -> 0
A19: 知人・友人 | C19: ='個別ケース相談対応（日報入力用）'!O$5 -> 0
A20: 地域住民 | C20: ='個別ケース相談対応（日報入力用）'!P$5 -> 0
A21: ケアマネジャー | C21: ='個別ケース相談対応（日報入力用）'!Q$5 -> 0
A22: 事業所 | C22: ='個別ケース相談対応（日報入力用）'!R$5 -> 0
A23: 民生委員 | C23: ='個別ケース相談対応（日報入力用）'!S$5 -> 0
A24: リーフレット | C24: ='個別ケース相談対応（日報入力用）'!T$5 -> 0
A25: インターネット | C25: ='個別ケース相談対応（日報入力用）'!U$5 -> 0
A26: 行政機関 | C26: ='個別ケース相談対応（日報入力用）'!V$5 -> 0
A27: 医療機関 | C27: ='個別ケース相談対応（日報入力用）'!W$5 -> 0
A28: 不明 | C28: ='個別ケース相談対応（日報入力用）'!X$5 -> 0
A29: その他 | C29: ='個別ケース相談対応（日報入力用）'!Y$5 -> 0
A31: ●【４】相談者 ※複数回答有
A32: 本人 | C32: ='個別ケース相談対応（日報入力用）'!Z$5 -> 0
A33: 家族・親族 | C33: ='個別ケース相談対応（日報入力用）'!AA$5 -> 0
A34: 友人 | C34: ='個別ケース相談対応（日報入力用）'!AB$5 -> 0
A35: 民生委員 | C35: ='個別ケース相談対応（日報入力用）'!AC$5 -> 0
A36: 町会・自治会・地域住民など | C36: ='個別ケース相談対応（日報入力用）'!AD$5 -> 0
A37: ケアマネジャー | C37: ='個別ケース相談対応（日報入力用）'!AE$5 -> 0
A38: サービス事業所 | C38: ='個別ケース相談対応（日報入力用）'!AF$5 -> 0
A39: 障害関係事業所 | C39: ='個別ケース相談対応（日報入力用）'!AG$5 -> 0
A40: 医療機関 | C40: ='個別ケース相談対応（日報入力用）'!AH$5 -> 0
A41: 弁護士・司法書士など（権利擁護） | C41: ='個別ケース相談対応（日報入力用）'!AI$5 -> 0
A42: 区役所（高齢者支援係） | C42: ='個別ケース相談対応（日報入力用）'!AJ$5 -> 0
A43: 区役所（介護認定給付係） | C43: ='個別ケース相談対応（日報入力用）'!AK$5 -> 0
A44: 区役所（保護課） | C44: ='個別ケース相談対応（日報入力用）'!AL$5 -> 0
A45: 区役所（障害者支援係） | C45: ='個別ケース相談対応（日報入力用）'!AM$5 -> 0
A46: 区役所（地域支援課） | C46: ='個別ケース相談対応（日報入力用）'!AN$5 -> 0
A47: 区役所（その他） | C47: ='個別ケース相談対応（日報入力用）'!AO$5 -> 0
A48: その他 | C48: ='個別ケース相談対応（日報入力用）'!AP$5 -> 0
A49: 不明 | C49: ='個別ケース相談対応（日報入力用）'!AQ$5 -> 0
A51: ●【５】本人の年齢
A52: 65歳未満 | C52: ='個別ケース相談対応（日報入力用）'!AR$5 -> 0
A53: 65～74歳 | C53: ='個別ケース相談対応（日報入力用）'!AS$5 -> 0
A54: 75～85歳 | C54: ='個別ケース相談対応（日報入力用）'!AT$5 -> 0
A55: 85歳歳以上 | C55: ='個別ケース相談対応（日報入力用）'!AU$5 -> 0
A56: 不明 | C56: ='個別ケース相談対応（日報入力用）'!AV$5 -> 0
A58: ●【６】本人の性別
A59: 男性 | C59: ='個別ケース相談対応（日報入力用）'!AW$5 -> 0
A60: 女性 | C60: ='個別ケース相談対応（日報入力用）'!AX$5 -> 0
A61: その他 | C61: ='個別ケース相談対応（日報入力用）'!AY$5 -> 0
A62: 不明 | C62: ='個別ケース相談対応（日報入力用）'!AZ$5 -> 0
A64: ●【７】世帯構成
A65: 独居 | C65: ='個別ケース相談対応（日報入力用）'!BB$5 -> 0
A66: 夫婦のみ | C66: ='個別ケース相談対応（日報入力用）'!BC$5 -> 0
A67: 家族と同居 | C67: ='個別ケース相談対応（日報入力用）'!BD$5 -> 0
A68: その他 | C68: ='個別ケース相談対応（日報入力用）'!BE$5 -> 0
A69: 不明 | C69: ='個別ケース相談対応（日報入力用）'!BF$5 -> 0
A71: ●【８】認定申請状況
A72: 未申請 | C72: ='個別ケース相談対応（日報入力用）'!BG$5 -> 0
A73: 申請中 | C73: ='個別ケース相談対応（日報入力用）'!BH$5 -> 0
A74: 事業対象者 | C74: ='個別ケース相談対応（日報入力用）'!BI$5 -> 0
A75: 要支援１ | C75: ='個別ケース相談対応（日報入力用）'!BJ$5 -> 0
A76: 要支援２ | C76: ='個別ケース相談対応（日報入力用）'!BK$5 -> 0
A77: 要介護１ | C77: ='個別ケース相談対応（日報入力用）'!BL$5 -> 0
A78: 要介護２ | C78: ='個別ケース相談対応（日報入力用）'!BM$5 -> 0
A79: 要介護３ | C79: ='個別ケース相談対応（日報入力用）'!BN$5 -> 0
A80: 要介護４ | C80: ='個別ケース相談対応（日報入力用）'!BO$5 -> 0
A81: 要介護５ | C81: ='個別ケース相談対応（日報入力用）'!BP$5 -> 0
A82: 不明 | C82: ='個別ケース相談対応（日報入力用）'!BQ$5 -> 0
A84: ●【９】相談内容（主訴） ※複数回答有
A85: 介護給付 | C85: ='個別ケース相談対応（日報入力用）'!BR$5 -> 0
A86: 予防給付・総合事業 | C86: ='個別ケース相談対応（日報入力用）'!BS$5 -> 0
A87: 介護保険関連（申請） | C87: ='個別ケース相談対応（日報入力用）'!BT$5 -> 0
A88: 本人の介護に関する相談 | C88: ='個別ケース相談対応（日報入力用）'!BU$5 -> 0
A89: 介護者の負担 | C89: ='個別ケース相談対応（日報入力用）'!BV$5 -> 0
A90: 介護離職 | C90: ='個別ケース相談対応（日報入力用）'!BW$5 -> 0
A91: 障害等他分野の相談 | C91: ='個別ケース相談対応（日報入力用）'!BX$5 -> 0
A92: 複合的な課題 | C92: ='個別ケース相談対応（日報入力用）'!BY$5 -> 0
A93: 市単サービス | C93: ='個別ケース相談対応（日報入力用）'!BZ$5 -> 0
A94: インフォーマルサポート | C94: ='個別ケース相談対応（日報入力用）'!CA$5 -> 0
A95: 施設入所 | C95: ='個別ケース相談対応（日報入力用）'!CB$5 -> 0
A96: 介護方法等 | C96: ='個別ケース相談対応（日報入力用）'!CC$5 -> 0
A97: 医療・健康管理全般 | C97: ='個別ケース相談対応（日報入力用）'!CD$5 -> 0
A98: 安否確認 | C98: ='個別ケース相談対応（日報入力用）'!CE$5 -> 0
A99: 判断能力を欠く常況（成年後見含む） | C99: ='個別ケース相談対応（日報入力用）'!CF$5 -> 0
A100: 認知症（判断能力低下など疑い含む） | C100: ='個別ケース相談対応（日報入力用）'!CG$5 -> 0
A101: 支援拒否・援助希求無 | C101: ='個別ケース相談対応（日報入力用）'!CH$5 -> 0
A102: 虐待 | C102: ='個別ケース相談対応（日報入力用）'!CI$5 -> 0
A103: 生活保護・困窮・経済的な相談 | C103: ='個別ケース相談対応（日報入力用）'!CJ$5 -> 0
A104: その他生活上の課題（生活支援） | C104: ='個別ケース相談対応（日報入力用）'!CK$5 -> 0
A105: 苦情・トラブル | C105: ='個別ケース相談対応（日報入力用）'!CL$5 -> 0
A106: その他 | C106: ='個別ケース相談対応（日報入力用）'!CM$5 -> 0
A108: ●【10】緊急レベル
A109: レベル１（一般的な問い合わせ） | C109: ='個別ケース相談対応（日報入力用）'!CN$5 -> 0
A110: レベル２（相談者自身で対応が可能） | C110: ='個別ケース相談対応（日報入力用）'!CO$5 -> 0
A111: レベル３（専門的・継続的な支援が必要） | C111: ='個別ケース相談対応（日報入力用）'!CP$5 -> 0
A112: レベル４（緊急対応が必要） | C112: ='個別ケース相談対応（日報入力用）'!CQ$5 -> 0
A114: ●【11】対応方針（月締め時点） ※複数回答有
A115: 予防プラン作成等 | C115: ='個別ケース相談対応（日報入力用）'!CR$5 -> 0
A116: 状態改善のための集中支援 | C116: ='個別ケース相談対応（日報入力用）'!CS$5 -> 0
A117: 居宅サービス利用 | C117: ='個別ケース相談対応（日報入力用）'!CT$5 -> 0
A118: 施設入所 | C118: ='個別ケース相談対応（日報入力用）'!CU$5 -> 0
A119: 医療へのつなぎ | C119: ='個別ケース相談対応（日報入力用）'!CV$5 -> 0
A120: その他福祉サービス・相談機関の紹介 | C120: ='個別ケース相談対応（日報入力用）'!CW$5 -> 0
A121: インフォーマルサポート・サービス | C121: ='個別ケース相談対応（日報入力用）'!CX$5 -> 0
A122: 高齢者虐待 | C122: ='個別ケース相談対応（日報入力用）'!DA$5 -> 0
A123: その他権利擁護 | C123: ='個別ケース相談対応（日報入力用）'!DA$5 -> 0
A124: 支援困難事例等として介入（虐待以外） | C124: ='個別ケース相談対応（日報入力用）'!DB$5 -> 0
A125: その他継続対応（見守り等） | C125: ='個別ケース相談対応（日報入力用）'!DC$5 -> 0
A126: 対応保留・連絡待ち等 | C126: ='個別ケース相談対応（日報入力用）'!DD$5 -> 0
A127: その他 | C127: ='個別ケース相談対応（日報入力用）'!DE$5 -> 0
A129: ●【12】調整先（月締め時点） ※複数回答有
A130: 本人 | C130: ='個別ケース相談対応（日報入力用）'!DE$5 -> 0
A131: 家族・親族 | C131: ='個別ケース相談対応（日報入力用）'!DF$5 -> 0
A132: 民生委員 | C132: ='個別ケース相談対応（日報入力用）'!DG$5 -> 0
A133: 町内会・自治会・地域住民など | C133: ='個別ケース相談対応（日報入力用）'!DH$5 -> 0
A134: ケアマネジャー | C134: ='個別ケース相談対応（日報入力用）'!DI$5 -> 0
A135: 介護サービス事業所 | C135: ='個別ケース相談対応（日報入力用）'!DJ$5 -> 0
A136: 介護予防事業 | C136: ='個別ケース相談対応（日報入力用）'!DK$5 -> 0
A137: 地域活動 | C137: ='個別ケース相談対応（日報入力用）'!DL$5 -> 0
A138: その他インフォーマルサポート・サービス | C138: ='個別ケース相談対応（日報入力用）'!DM$5 -> 0
A139: 地域リハビリテーション支援拠点 | C139: ='個別ケース相談対応（日報入力用）'!DN$5 -> 0
A140: 障害関係事業所 | C140: ='個別ケース相談対応（日報入力用）'!DO$5 -> 0
A141: 医療機関 | C141: ='個別ケース相談対応（日報入力用）'!DP$5 -> 0
A142: 区役所（高齢） | C142: ='個別ケース相談対応（日報入力用）'!DQ$5 -> 0
A143: 区役所（認定給付） | C143: ='個別ケース相談対応（日報入力用）'!DR$5 -> 0
A144: 区役所（保護） | C144: ='個別ケース相談対応（日報入力用）'!DS$5 -> 0
A145: 区役所（障害・精神） | C145: ='個別ケース相談対応（日報入力用）'!DT$5 -> 0
A146: 区役所（地域支援） | C146: ='個別ケース相談対応（日報入力用）'!DU$5 -> 0
A147: その他行政 | C147: ='個別ケース相談対応（日報入力用）'!DV$5 -> 0
A148: 生活支援コーディネーター | C148: ='個別ケース相談対応（日報入力用）'!DW$5 -> 0
A149: 権利擁護機関 | C149: ='個別ケース相談対応（日報入力用）'!DX$5 -> 0
A150: 住まい関係の機関・団体・事業所 | C150: ='個別ケース相談対応（日報入力用）'!DY$5 -> 0
A151: その他 | C151: ='個別ケース相談対応（日報入力用）'!DZ$5 -> 0
A154: ２．実態把握事業
A155: ●【1】継続対応中 ※給付管理対象者以外
A156: 継続対応中 | C156: ='継続対応ケース（月締入力用）'!O$9 -> 0
A157: (内訳） | B157: 権利擁護・虐待 | C157: ='継続対応ケース（月締入力用）'!O$5 -> 
B158: 他機関と連携して介入 | C158: ='継続対応ケース（月締入力用）'!O$6 -> 
B159: 包括以外に関わり無等 | C159: ='継続対応ケース（月締入力用）'!O$7 -> 
B160: その他 | C160: ='継続対応ケース（月締入力用）'!O$8 -> 
A161: うち、支援拒否 | C161: ='継続対応ケース（月締入力用）'!O$10 -> 
A163: ●【2】その他の実態把握対象者 ※給付管理対象者以外
A164: 上記以外の実態把握対象者 | C164: ='継続対応ケース（月締入力用）'!O$14 -> 
A165: (内訳） | B165: 実態把握対象者 | C165: ='継続対応ケース（月締入力用）'!O$14 -> 
A166: 継続的にかかわっていない実態把握対象者のモニタリング件数 | C166: ='継続対応ケース（月締入力用）'!O$15 -> 
A169: ３．包括的・継続的ケアマネジメント支援事業実績
A170: ●【1】個別ケア会議
A171: 個別ケア会議開催件数 | C171: ='個別ケア会議（随時入力用）'!E6+'個別ケア会議（随時入力用）'!F6 -> 0
A172: (開催目的）複数選択有 | B172: 支援方針検討 | C172: ='個別ケア会議（随時入力用）'!N$6 -> 0
B173: 専門機関連携 | C173: ='個別ケア会議（随時入力用）'!O$6 -> 0
B174: 行政部署との連携 | C174: ='個別ケア会議（随時入力用）'!P$6 -> 0
B175: 支援者支援 | C175: ='個別ケア会議（随時入力用）'!Q$6 -> 0
B176: 地域連携 | C176: ='個別ケア会議（随時入力用）'!R$6 -> 0
B177: 苦情・トラブル | C177: ='個別ケア会議（随時入力用）'!S$6 -> 0
B178: その他 | C178: ='個別ケア会議（随時入力用）'!T$6 -> 0
A180: ●【2】個別ケア会議の参加者 ※複数選択有
A181: 本人 | C181: ='個別ケア会議（随時入力用）'!V$6 -> 0
A182: 家族 | C182: ='個別ケア会議（随時入力用）'!W$6 -> 0
A183: 知人 | C183: ='個別ケア会議（随時入力用）'!X$6 -> 0
A184: 民生委員 | C184: ='個別ケア会議（随時入力用）'!Y$6 -> 0
A185: 地域住民(地縁組織含む) | C185: ='個別ケア会議（随時入力用）'!Z$6 -> 0
A186: ケアマネジャー | C186: ='個別ケア会議（随時入力用）'!AA$6 -> 0
A187: 介護サービス事業所 | C187: ='個別ケア会議（随時入力用）'!AB$6 -> 0
A188: 権利擁護専門職 | C188: ='個別ケア会議（随時入力用）'!AC$6 -> 0
A189: 医療機関・薬局 | C189: ='個別ケア会議（随時入力用）'!AD$6 -> 0
A190: 地域リハ拠点 | C190: ='個別ケア会議（随時入力用）'!AE$6 -> 0
A191: 生活支援コーディネーター | C191: ='個別ケア会議（随時入力用）'!AF$6 -> 0
A192: 地域ケアコーディネーター | C192: ='個別ケア会議（随時入力用）'!AG$6 -> 0
A193: 障害者相談支援センター | C193: ='個別ケア会議（随時入力用）'!AH$6 -> 0
A194: 障害サービス事業所 | C194: ='個別ケア会議（随時入力用）'!AI$6 -> 0
A195: 地域支援室 | C195: ='個別ケア会議（随時入力用）'!AJ$6 -> 0
A196: 高齢者支援係 | C196: ='個別ケア会議（随時入力用）'!AK$6 -> 0
A197: 障害者支援係 | C197: ='個別ケア会議（随時入力用）'!AL$6 -> 0
A198: 精神保健係 | C198: ='個別ケア会議（随時入力用）'!AM$6 -> 0
A199: 保護課 | C199: ='個別ケア会議（随時入力用）'!AN$6 -> 0
A200: 地域支援課 | C200: ='個別ケア会議（随時入力用）'!AO$6 -> 0
A201: その他行政 | C201: ='個別ケア会議（随時入力用）'!AP$6 -> 0
A202: 他地域包括支援センター | C202: ='個別ケア会議（随時入力用）'!AQ$6 -> 0
A203: その他 | C203: ='個別ケア会議（随時入力用）'!AR$6 -> 0
A205: ●【3】個別ケア会議の主な論点 ※複数選択有
A206: 認知症 | C206: ='個別ケア会議（随時入力用）'!V$6 -> 0
A207: 障害 | C207: ='個別ケア会議（随時入力用）'!W$6 -> 0
A208: 精神疾患 | C208: ='個別ケア会議（随時入力用）'!X$6 -> 0
A209: 身寄り無・KP不在等 | C209: ='個別ケア会議（随時入力用）'!Y$6 -> 0
A210: 支援拒否・援助希求無 | C210: ='個別ケア会議（随時入力用）'!Z$6 -> 0
A211: 金銭管理 | C211: ='個別ケア会議（随時入力用）'!AA$6 -> 0
A212: 成年後見制度関係 | C212: ='個別ケア会議（随時入力用）'!AB$6 -> 0
A213: 経済問題 | C213: ='個別ケア会議（随時入力用）'!AC$6 -> 0
A214: ごみ問題 | C214: ='個別ケア会議（随時入力用）'!AD$6 -> 0
A215: 医療との連携 | C215: ='個別ケア会議（随時入力用）'!AE$6 -> 0
A216: 他分野の支援者との連携 | C216: ='個別ケア会議（随時入力用）'!AF$6 -> 0
A217: 支援者の役割分担 | C217: ='個別ケア会議（随時入力用）'!AG$6 -> 0
A218: 支援者の経験・スキル | C218: ='個別ケア会議（随時入力用）'!AH$6 -> 0
A219: 家族関係・トラブル | C219: ='個別ケア会議（随時入力用）'!AI$6 -> 0
... 83 more rows

Sheet マスタ
A1: 年度
A2: 令和7年度
A3: 令和8年度
A4: 令和9年度
A5: 令和10年度
A6: 令和11年度
A7: 令和12年度
A8: 令和13年度
A9: 令和14年度
A10: 令和15年度
A11: 令和16年度
A12: 令和17年度
A13: 令和18年度
A14: 令和19年度
A15: 令和20年度
A16: 令和21年度
A17: 令和22年度
A20: センター名称
A21: 01桜寿園
A22: 02恒春園
A23: 03大師の里
A24: 04しおん
A25: 05京町
A26: 06大師中央
A27: 07ビオラ川崎
A28: 08大島中島
A29: 09藤崎
A30: 10幸風苑
A31: 11夢見ヶ崎
A32: 12かしまだ
A33: 13しゃんぐりら
A34: 14みんなと暮らす町
A35: 15さいわい東
A36: 16すみよし
A37: 17こだなか
A38: 18ひらまの里
A39: 19みやうち
A40: 20いだ
A41: 21とどろき
A42: 22わらく
A43: 23すえなが
A44: 24陽だまりの園
A45: 25溝口
A46: 26ひさすえ
A47: 27樹の丘
A48: 28リ・ケア向ヶ丘
A49: 29みかど荘
A50: 30鷲ヶ峯
A51: 31富士見プラザ
A52: 32レストア川崎
A53: 33フレンド神木
A54: 34宮前平
A55: 35ビオラ宮崎
A56: 36長沢壮寿の里
A57: 37多摩川の里
A58: 38太陽の園
A59: 39菅の里
A60: 40しゅくがわら
A61: 41よみうりランド花ハウス
A62: 42登戸
A63: 43柿生アルナ園
A64: 44栗木台
A65: 45虹の里
A66: 46片平
A67: 47百合丘
A68: 48新百合
A69: 49高石
